Cogmind - Beta 16 @@@ ROGUE MODE // 2026.01.21 @ 20:45:50 Player: YoKa Result: Destroyed by exploding Fusion Modulator Performance ------------- Evolutions (0) 0 Regions Visited (1) 200 Robots Destroyed (19) 95 Value Destroyed (425) 425 Prototype IDs (2) 40 Alien Tech Used (0) 0 Bonus (0) 0 TOTAL SCORE: 760 Bonus ------- None Cogmind --------- Core Integrity 0/250 Matter 282/300 Energy 100/100 System Corruption 0% Temperature Cool (12) Movement Core (150) Ox2 Location -10/Materials Parts ------- > --- POWER (1) -------- (None) > --- PROPULSION (2) --- (None) > --- UTILITY (2) ------ Small Storage Unit > --- WEAPON (2) ------- Mining Claw > --- INVENTORY (8) ---- Light Ion Engine Light Treads Light Treads Light Treads Huge Storage Unit Hacking Suite Light Assault Rifle Light Assault Rifle Peak State ------------ > --- POWER ------------ Light Ion Engine > --- PROPULSION ------- Light Treads Light Treads > --- UTILITY ---------- Small Storage Unit Small Storage Unit > --- WEAPON ----------- Light Assault Rifle Light Assault Rifle > --- INVENTORY -------- Light Ion Engine Small Laser [Rating: 7] Favorites ----------- Power Light Ion Engine Engine Light Ion Engine Propulsion Light Treads Treads Light Treads Utility Small Storage Unit Storage Small Storage Unit Weapon Light Assault Rifle Energy Gun Small Laser Ballistic Gun Light Assault Rifle Slashing Weapon Mining Claw Build | -11 -10 ------- Run | Yrd Mat Slots Evolved . | . . Power . | . . Propulsion . | . . Utility . | . . Weapon . | . . Parts Attached 12 | 8 4 Power 3 | 1 2 Engine 3 | 1 2 Core . | . . Reactor . | . . Propulsion 3 | 2 1 Treads 3 | 2 1 Leg . | . . Wheel . | . . Hover . | . . Flight . | . . Utility 2 | 2 . Device . | . . Storage 2 | 2 . Processor . | . . Hackware . | . . Protection . | . . Artifact . | . . Weapon 4 | 3 1 Energy Gun 1 | 1 . Energy Cannon . | . . Ballistic Gun 2 | 2 . Ballistic Cannon . | . . Launcher . | . . Special Weapon . | . . Impact Weapon . | . . Slashing Weapon 1 | . 1 Piercing Weapon . | . . Special Melee Weapon . | . . Unidentified Prototypes . | . . Parts Lost 4 | . 4 Power 1 | . 1 Propulsion 2 | . 2 Utility . | . . Weapon 1 | . 1 Highest Loss Streak 4 | . 4 To Critical Strikes . | . . Average Backups 5 | 1 5 Power . | . . Propulsion 1 | . 1 Utility 1 | . 2 Weapon 1 | . 1 Tool/Special . | . . Unused Backups 6 | . 6 Power 1 | . 1 Propulsion 2 | . 2 Utility 2 | . 2 Weapon 1 | . 1 Tool/Special . | . . Average Slot Usage (%) 84 | . 84 Engine 13 | . 13 Treads 27 | . 27 Storage 14 | . 14 Ballistic Gun 18 | . 18 Slashing Weapon 9 | . 9 Peak Build Rating 7 | 7 7 Average Rating 5 | 4 6 On Entrance 3 | . 6 Avg Prop Armor Cover (%) . | . . Naked Turns . | . . Heaviest Build 13 | 10 13 Greatest Support 40 | 40 40 Greatest Overweight (x) 2 | 2 2 Average Overweight (x) . | . . Largest Inventory Capacity 8 | 8 8 Average Capacity 7 | 7 8 Most Carried 8 | 4 8 Average Carried 5 | 2 5 Final Capacity 8 | 8 8 Final Carried 8 | 3 8 Class Distribution -------------------- 100% | Mutant Dominant Class ---------------- Mutant | -10/Materials Resources | -11 -10 ----------- Run | Yrd Mat Matter Collected 394 | 221 173 Remotely . | . . Salvage Created 647 | 57 590 Parts 44 | 3 41 Haulers Intercepted 2 | . 2 Recyclers Shooed . | . . Parts Field Recycled . | . . Retrieved Matter . | . . Parts Self-Destructed . | . . Prevented . | . . Parts Restored . | . . Kills | -11 -10 ------- Run | Yrd Mat Combat Hostiles Destroyed 11 | . 11 Melee 6 | . 6 Guns 5 | . 5 Classes Destroyed 7 | 1 6 Worker 2 | . 2 Hauler 2 | . 2 Recycler 1 | 1 . Operator 2 | . 2 Watcher 1 | . 1 Swarmer 2 | . 2 Grunt 9 | . 9 Best Kill Streak 4 | 1 4 Combat Bots Only 3 | . 3 Max Kills in Single Turn 1 | 1 1 Gunslinging . | . . Exploded . | . . Melee 1 | . 1 Uniques/NPCs Destroyed . | . . Combat | -11 -10 -------- Run | Yrd Mat Hostile Shots Fired 85 | . 85 Missed 18 | . 18 Hits 67 | . 67 Projectile 67 | . 67 Damage Taken 883 | . 883 Core 262 | . 262 Absorbed by Shields . | . . Core Remaining (%) 100 | 100 . Volleys Fired 43 | 3 40 Largest 2 | 2 2 Hottest 40 | 40 40 Shots Fired 82 | 6 76 Gun 82 | 6 76 Cannon . | . . Launcher . | . . Special . | . . Kinetic 82 | 6 76 Thermal . | . . Explosive . | . . Electromagnetic . | . . Robot Hit Streak 10 | 2 10 Robot Miss Streak 4 | 1 4 Penetration Max . | . . Secondary Targets . | . . Shots Hit Robots 75 | 3 72 Core Hits 35 | 2 33 Critical Kills . | . . Critical Parts Destroyed 1 | . 1 Critical Strikes 1 | . 1 Destroy 1 | . 1 Melee Attacks 38 | . 38 Impact . | . . Slashing 38 | . 38 Piercing . | . . Sneak Attacks 3 | . 3 Combat Hostiles . | . . Follow-up Attacks . | . . Damage Inflicted 992 | 25 967 Guns 446 | 25 421 Cannons . | . . Explosions . | . . Melee 546 | . 546 Ramming . | . . Kinetic 446 | 25 421 Thermal . | . . Explosive . | . . Electromagnetic . | . . Impact . | . . Slashing 546 | . 546 Piercing . | . . Highest Corruption . | . . Average Corruption . | . . Corruption Purged . | . . Corruption Blocked . | . . Overload Shots . | . . Overflow Damage 24 | . 24 Projectiles . | . . Explosions . | . . Melee 24 | . 24 Knockbacks . | . . Impact . | . . Kinetic . | . . Secondary . | . . Self-Inflicted Damage . | . . Shots . | . . Rammed . | . . Targets Rammed . | . . Kicked . | . . Crushed . | . . Highest Temperature 18 | . 18 Average Temperature 9 | . 9 Received Heat Transfer 315 | . 315 Siege Activations . | . . Martial Activations . | . . Shielding Activations . | . . Robots Disrupted . | . . Combat Hostiles . | . . Robots Corrupted . | . . Combat Hostiles . | . . Parts Fried . | . . Impact Corruptions . | . . Robots Melted . | . . Combat Hostiles . | . . Parts Melted . | . . Heat Transferred . | . . Parts Sabotaged . | . . Parts Stolen . | . . Parts Stripped . | . . Power Chain Reactions . | . . Alert | -11 -10 ------- Run | Yrd Mat Maximum Alert Level . | . . Low Security (%) 100 | 100 100 Level 1 . | . . Level 2 . | . . Level 3 . | . . Level 4 . | . . Level 5 . | . . High Security . | . . Max Security . | . . Peak Influence 72 | 5 72 Initial . | . . Average 12 | . 12 Influence Increases 333 | 5 328 Destroy 0b10 Robot/C 220 | . 220 Destroy 0b10 Robot/NC 40 | 5 35 Destroy Leader 46 | . 46 Successful Hack 12 | . 12 Lose Combat Pursuer 15 | . 15 Influence Decreases 269 | 5 264 Time Decay 229 | 5 224 Lost Part 40 | . 40 Squads Dispatched 2 | . 2 Investigation 2 | . 2 Extermination . | . . Reinforcement . | . . Assault . | . . Garrison . | . . Intercept . | . . Searches Triggered . | . . Construction Impeded . | . . Haulers Reinforced . | . . Active Scanning Responses . | . . Cargo Convoy Interrupts . | . . Stealth | -11 -10 --------- Run | Yrd Mat Distress Signals 1 | . 1 Communications Jammed . | . . Distress Signals . | . . Times Spotted 24 | . 24 Peak Tracking Total 5 | . 5 Tactical Retreats 1 | . 1 Traps | -11 -10 ------- Run | Yrd Mat Traps Triggered 3 | . 3 Indirectly . | . . Trap Hack Attempts . | . . Triggered . | . . Disarmed . | . . Reprogrammed . | . . Reused . | . . Traps Extracted . | . . Installed . | . . Triggered . | . . Machines | -11 -10 ---------- Run | Yrd Mat Machines Disabled . | . . Max in Single Turn . | . . Machines Repaired . | . . Machines Dismantled . | . . Machines Sabotaged . | . . Overloaded Fab Kills . | . . Hacking | -11 -10 --------- Run | Yrd Mat Machines Accessed 6 | . 6 Terminals 5 | . 5 Fabricators . | . . Repair Stations . | . . Recycling Units 1 | . 1 Scanalyzers . | . . Garrison Access . | . . Total Hacks 14 | . 14 Successful 7 | . 7 Failed 6 | . 6 Catastrophic 1 | . 1 Database Lockouts 1 | . 1 Manual 15 | . 15 Terminals 13 | . 13 Fabricators . | . . Repair Stations . | . . Recycling Units 1 | . 1 Scanalyzers . | . . Garrison Access . | . . Terminal Hacks 3 | . 3 Prototype ID Bank 1 | . 1 Branch Access Points 1 | . 1 Terminal Index 1 | . 1 Fabricator Hacks . | . . Repair Station Hacks . | . . Recycling Unit Hacks 1 | . 1 Report Inventory 1 | . 1 Scanalyzer . | . . Garrison Access Hacks . | . . Unauthorized Hacks 3 | . 3 Terminals 3 | . 3 Assimilate 1 | . 1 Botnet 1 | . 1 Operators 1 | . 1 Fabricators . | . . Repair Stations . | . . Recycling Units . | . . Scanalyzers . | . . Garrison Access . | . . Data Cores Recovered . | . . Used . | . . Hacking Detections 6 | . 6 Full Trace Events 2 | . 2 Feedback Events . | . . Feedback Blocked . | . . Robot Schematics Acquired . | . . Robots Built . | . . Authchips . | . . Time . | . . Total Robot Build Rating . | . . Part Schematics Acquired . | . . Parts Built . | . . Authchips . | . . Time . | . . Total Part Build Rating . | . . Part Studies Acquired . | . . Parts Repaired . | . . Time . | . . Parts Recycled . | . . Recycled Matter . | . . Retrieved Matter . | . . Retrieved Components . | . . Parts Scanalyzed . | . . Part Schematics Acquired . | . . Parts Damaged . | . . Bothacking | -11 -10 ------------ Run | Yrd Mat Used RIF Installer . | . . Robots Hacked . | . . Non-combat . | . . Combat . | . . Robot Hacks Applied . | . . Relay Couplers Released . | . . Fabnet Peak Effective % . | . . Robots Rewired . | . . Allies Hacked . | . . Hacks Repelled . | . . Allies | -11 -10 -------- Run | Yrd Mat Total Allies . | . . Largest Group . | . . Highest-Rated Group . | . . Highest-Rated Ally . | . . Total Orders . | . . Ally Attacks . | . . Total Damage . | . . Kills . | . . Allies Corrupted . | . . Allies Melted . | . . Intel | -11 -10 ------- Run | Yrd Mat Active Infowar (turns) . | . . Robot Analysis Total . | . . Derelict Logs Recovered . | . . Drone Launches . | . . Drone Recoveries . | . . Exploration | -11 -10 ------------- Run | Yrd Mat Turns Passed 1465 | 75 1390 Spaces Moved 691 | 36 655 Core 19 | 16 3 Treads 672 | 20 652 Legs . | . . Wheels . | . . Hover . | . . Flight . | . . Fastest Speed 50 | 50 150 Average Speed 158 | 138 159 Slowest Speed 160 | 160 160 Overloaded Moves . | . . Propulsion Burnouts . | . . Robots Hopped . | . . Potential Cave-ins . | . . Cave-ins Triggered . | . . Exploration Rate (%) 41 | 3 80 Regions Visited 1 Branch Regions . Pre-discovered Areas . | . . Known Exits Taken . | . . Unknown Exits Taken 1 | 1 . Scrap Searched . | . . Spaces Dug . | . . Terrain Destroyed . | . . Melee . | . . Projectile . | . . AOE . | . . Terrain Rammed . | . . Walls Destroyed . | . . Machines Disabled . | . . Actions | -11 -10 --------- Run | Yrd Mat Total 917 | 57 860 Wait 107 | . 107 Move 690 | 35 655 Hop . | . . Pick Up 18 | 9 9 Fast Attach 2 | . 2 Attach 10 | 8 2 Detach 2 | 2 . Swap 3 | . 3 Drop 4 | . 4 Fire 43 | 3 40 Melee 38 | . 38 Ram . | . . Kick . | . . Crush . | . . Escape Stasis . | . . Rewire . | . . Trap . | . . Miscellaneous . | . . Route ------- -11/Scrapyard -10/Materials (discovered 5 exits: [*Mat x2] / *Min x2 / [*Sub]) History --------- Turn | Location | Event 26 | -11/Scrapyard | Discovered new exit (range 15) 76 | -11/Scrapyard | Entered Materials 153 | -10/Materials | Identified exit to Mines 196 | -10/Materials | Discovered new exit (range 15) 313 | -10/Materials | Build established: Mutant 582 | -10/Materials | Central database locked down 644 | -10/Materials | Discovered new exit (range 3) 1363 | -10/Materials | Discovered new exit (range 7) 1429 | -10/Materials | Core integrity fell below 50% 1466 | -10/Materials | Destroyed by exploding Fusion Modulator Last Messages --------------- T-07 Excavator is excavating. EXIT=FOUND G-34 Mercenary destroyed. K-01 Serf collects debris. Dropped Lgt. Ion Engine. Acquired Ion Engine. K-01 Serf collects debris. G-34 Mercenary destroyed. Lgt. Treads destroyed. G-34 Mercenary destroyed. K-01 Serf collects debris. Lgt. Treads destroyed. K-01 Serf collects debris. Ion Engine destroyed. K-01 Serf collects debris. Lgt. Assault Rifle destroyed. G-47 Trooper destroyed. K-01 Serf collects debris. Fusion Modulator explodes. K-01 Serf destroyed. Map ----- +----------------------------------------------------+ | ^ !# #####?????????????????????? | | # #?????????????????????????? | | ^ ########?????????????????????????? | | #########????????????????????????? | | """ ## #????????????????????????? | | ^[[[^ """ ## """ #????????????????????????? | | [[[ """ # """ #???????????????#????????? | | [[[ #%""" #?????????????? #????????? | | #=* #????????????? #????????? | | %+%[ #???????????? ##???????? | | ########T## ################### #???????? | | ! #?#### ! #???????? | | #????# #???????? | | """" #????# #???????? | | """" #????# ############# #### #???????? | | """" #????# # #????# #????????????????? | | ?????# *+%% #????# #????????????????? | | #????# #= #????# #????????????????? | | ######????# # |#????# ##########???????? | | ??????????# # #????# # #???????? | | ########### # #????# # """ #???????? | | ########????# # """ #???????? | | ########### ############# # """ #???????? | | ??????##! # ==! # # #???????? | | ??????#! # T ==! # # """ #???????? | | ??????#! < # ==! @# # """ #???????? | | ??????#! # !%+= +* """ #???????? | | ??????#! ##### [#g=# #???????? | | ??????##! #???#############[ ##########???????? | | ???????####??????????????# ######??????????? | | ?????????????????????????# #??????????? | | ?????????????????????????#* #??????????? | | ?????????????????????????# [ ## ########?????? | | ?????????????????##########+### #?????? | | ?????????????????# """ """ % # #?????? | | ?????????????????# """ """ # #?????? | | ?????????????????# """ """ ### ##?????? | | ?????????????????# #?### ##??????? | | ?????????????????# #????<###???????? | | ?????????????????##############?????#?????????? | | | | | | | | | | | | | | | | | | | | | +----------------------------------------------------+ Best States ------------- Heat Dissipation 25 Energy Generation 10 Energy Capacity 250 Matter Stores 300 Matter Capacity 300 Sight Range 16 Terrain Scan Density 10 Evasion (%) 40 Recoil Reduction 2 Item Schematics ----------------- None Robot Schematics ------------------ None Fabricated ------------ Nothing Repaired ---------- Nothing Studied --------- None Alien Tech Used ----------------- None Achievements -------------- None Challenges ------------ None Game ------ Seed CoolingMobileGenerator Manual? 0 Play Time 00:12:08 Cumulative 11.1 hours Start 2026.01.21 @ 20:33:48 End 2026.01.21 @ 20:45:50 Sessions 1 Manual Loads 0 Difficulty Rogue Special Mode None Game No. 18 Rogue 18 Adventurer 0 Explorer 0 Win Type - Total 0 Types 0/0/0/0/0/0/0/0/0/0 Lore% 12 Gallery% 16 Achievement% 15 Wizard Run 0 Options --------- Layout 2 ASCII 0 Keyboard 0 Movement Mouse Keybinds 0 Fullscreen 1 Font 24/Smallcaps Map View 50x44 Zoom Use 0% Tactical HUD 0 Map Filters NONE Filters NONE Steam 1 RUN: ee7453ee-eff3-4d98-8753-c573f14e3622